bitfinex/quotes_ETHUSD_20250611
["timestamp","ask_amount","ask_price","bid_price","bid_amount"]
[1749611814108,0.55,2782.0,2781.5,0.961]
[1749611815143,0.55,2782.0,2781.6,9.302]
[1749611815822,0.55,2782.0,2781.5,0.961]
[1749611815823,10.39337217,2781.7,2781.5,9.302]
[1749611816022,1.4084,2781.9,2781.6,0.961]
[1749611818221,10.39337217,2781.8,2781.7,0.961]
[1749611818422,10.94337217,2781.8,2781.7,0.961]
[1749611818748,0.8584,2781.8,2781.7,0.961]
[1749611818945,0.8584,2782.0,2781.7,0.961]
[1749611819454,13.22897217,2782.4,2781.7,0.961]
[1749611819455,0.8584,2782.2,2781.7,0.961]
[1749611819959,10.39337217,2782.4,2781.7,0.961]
[1749611820166,0.55,2782.3,2781.7,0.961]
[1749611823224,0.55,2782.3,2781.5,9.302]
[1749611823462,0.55,2782.3,2781.6,0.962]
[1749611823463,0.55,2782.0,2781.6,0.962]
[1749611824468,0.55,2782.0,2781.7,0.962]
[1749611825031,9.53497217,2781.8,2781.5,9.302]
[1749611825235,0.55,2782.0,2781.6,0.962]
[1749611827298,6.24686231,2782.0,2781.6,0.962]
[1749611827452,6.24686231,2781.8,2781.6,0.962]
[1749611827790,0.55,2782.1,2781.6,0.962]
[1749611827791,6.24686231,2782.0,2781.6,0.962]
[1749611828492,0.55,2782.2,2781.6,0.962]
[1749611828838,0.55,2782.2,2781.7,3.69]
[1749611829339,6.24686231,2782.4,2781.7,3.69]
[1749611829537,0.9087,2782.6,2781.7,3.69]
[1749611829538,0.55,2782.5,2781.7,3.69]
[1749611829851,6.24686231,2782.5,2781.7,3.69]
[1749611831242,0.55,2782.6,2781.7,3.69]
[1749611832063,1.64900638,2782.6,2781.5,9.302]
[1749611832273,0.55,2782.3,2781.6,4.652]
[1749611832493,0.55,2782.3,2781.7,4.651]
[1749611835286,0.55,2782.5,2781.5,9.302]
[1749611835501,0.55,2782.2,2781.5,9.302]
[1749611835661,2.44003638,2782.2,2781.5,9.302]
[1749611835996,2.44003638,2782.2,2781.6,4.652]
[1749611838181,0.55,2782.1,2781.6,4.652]
[1749611839192,0.55,2782.1,2781.7,0.962]
[1749611839565,0.8973,2782.5,2781.7,0.962]
[1749611839766,10.43466377,2781.9,2781.8,10.265]
[1749611840087,10.98466377,2781.9,2781.8,10.265]
[1749611841176,10.98466377,2781.9,2781.8,10.268]
[1749611841489,0.3587,2783.2,2781.8,10.268]
[1749611841490,0.55,2782.1,2781.8,10.268]
[1749611841911,0.55,2782.3,2781.8,10.268]
[1749611843757,0.55,2782.4,2781.8,10.268]
[1749611843963,0.8748,2782.6,2781.8,10.268]
[1749611843964,0.8748,2782.6,2781.9,3.69]
[1749611844202,9.53736377,2782.8,2781.9,3.69]
[1749611844401,0.55,2782.6,2781.9,3.69]
[1749611844599,9.53736377,2782.8,2781.9,3.69]
[1749611844806,0.55,2782.7,2781.9,3.69]
[1749611845096,0.8748,2782.9,2781.9,3.69]
[1749611845594,0.55,2782.8,2781.9,3.69]
[1749611849399,0.55,2782.3,2781.8,9.303]
[1749611849604,0.55,2782.3,2781.9,4.65]
[1749611851106,0.55,2782.3,2781.9,0.965]
[1749611851288,0.55,2782.3,2782.0,3.684]
[1749611853316,0.55,2782.9,2782.0,3.684]
[1749611853467,6.24553083,2782.3,2782.0,3.684]
[1749611855215,6.24553083,2782.1,2781.8,12.986]
[1749611855504,6.24553083,2781.9,2781.8,12.986]
[1749611855811,6.24553083,2781.9,2781.8,13.951]
[1749611856816,6.24553083,2781.9,2781.8,9.303]
[1749611857018,6.24553083,2781.9,2781.8,10.268]
[1749611857631,6.24553083,2781.9,2781.8,9.303]
[1749611858005,6.24553083,2781.9,2781.8,10.268]
[1749611862341,6.87008391,2781.9,2781.8,10.268]
[1749611864232,6.24553083,2781.9,2781.8,10.268]
[1749611873548,6.24553083,2781.9,2781.8,0.962]
[1749611875154,6.24553083,2781.9,2781.8,9.303]
[1749611875367,17.55726166,2781.9,2781.8,10.265]
[1749611875519,0.55,2781.6,2781.1,3.683]
[1749611875843,0.55,2781.6,2781.2,10.265]
[1749611876019,0.55,2781.4,2781.2,10.265]
[1749611876224,0.55,2781.2,2780.8,3.683]
[1749611876559,0.55,2781.2,2780.9,10.265]
[1749611876757,0.3587,2782.7,2780.9,10.265]
[1749611876924,0.55,2781.6,2780.9,10.265]
[1749611877621,6.24553083,2781.5,2780.9,10.265]
[1749611877823,0.55,2781.4,2780.9,10.265]
[1749611879465,0.55,2781.4,2781.0,3.683]
[1749611880256,6.24553083,2781.3,2781.0,3.683]
[1749611882166,6.24553083,2781.3,2780.3,6.24553083]
[1749611882958,6.24553083,2780.9,2780.3,0.35516467]
[1749611883174,6.24553083,2780.9,2779.9,30.0]
[1749611883465,6.24553083,2780.9,2780.1,40.0]
[1749611883757,0.55,2781.0,2780.2,3.683]
[1749611884325,0.55,2781.0,2780.3,3.683]
[1749611884530,0.55,2781.0,2780.4,3.683]
[1749611884761,0.55,2781.0,2780.0,6.24553083]
[1749611885070,0.55,2781.0,2780.1,3.683]
[1749611885354,0.55,2781.0,2780.1,13.95]
[1749611886465,0.55,2781.0,2780.2,4.645]
[1749611886767,0.55,2781.0,2780.3,4.645]
[1749611888965,7.14133083,2780.9,2780.1,9.305]
[1749611889267,6.24553083,2780.7,2780.1,9.305]
[1749611889452,6.24553083,2780.7,2780.2,4.645]
[1749611889662,6.24553083,2780.7,2780.3,4.645]
[1749611889855,0.8958,2781.7,2780.3,4.645]
[1749611890055,6.24553083,2781.5,2780.3,10.89053083]
[1749611890259,6.24553083,2781.5,2780.4,0.40865435]
[1749611890468,0.55,2781.4,2780.4,0.40865435]
[1749611890868,0.55,2781.4,2780.3,14.48723782]
[1749611891034,0.55,2781.4,2780.4,10.0]
[1749611891669,0.8958,2781.7,2780.7,36.24553083]
[1749611891868,6.24553083,2781.8,2780.9,10.0]
[1749611894356,0.04,2781.9,2780.9,10.0]
[1749611895041,0.04,2781.9,2781.1,10.0]
[1749611895241,0.04,2781.9,2781.3,10.0]
[1749611896081,0.04,2781.9,2781.3,10.36728304]
[1749611897479,0.04,2781.9,2781.3,0.65783031]
[1749611897986,0.04,2781.9,2781.3,0.36728304]
[1749611898184,0.04,2781.9,2781.2,4.645]
[1749611899905,0.04,2781.9,2781.4,30.0]
[1749611900814,0.04,2781.9,2781.5,3.683]
[1749611902805,0.04,2781.9,2781.6,30.0]
[1749611903012,6.28553083,2782.9,2781.7,16.24553083]
[1749611903316,6.28553083,2782.9,2782.1,6.24553083]
[1749611903317,0.9572,2782.9,2782.1,6.24553083]
[1749611903463,0.9572,2782.9,2782.2,4.643]
[1749611903864,7.92300391,2782.9,2782.2,4.643]
[1749611904605,1.67747308,2782.9,2782.2,4.643]
[1749611904774,0.9572,2782.9,2782.3,10.0]
[1749611907719,0.9572,2782.9,2782.6,30.0]
[1749611907720,0.04,2782.9,2782.6,30.0]
[1749611907882,0.04,2782.9,2782.7,13.682]
[1749611908081,0.04,2782.9,2782.8,19.303]
[1749611909605,0.04,2782.9,2782.8,19.65911523]
[1749611910482,0.04,2782.9,2782.8,20.55711687]
[1749611911117,0.8802,2783.6,2782.9,10.0]
[1749611911421,6.24553083,2783.5,2783.0,4.643]
[1749611911720,6.24553083,2783.5,2783.1,10.0]
[1749611912757,6.24553083,2783.5,2782.8,10.55711687]
[1749611912959,6.24553083,2783.1,2782.9,0.961]
[1749611913127,6.24553083,2783.1,2782.9,3.681]
[1749611913128,0.62455308,2783.0,2782.9,3.681]
[1749611913328,0.8843,2783.1,2782.9,4.642]
[1749611913552,0.8843,2783.1,2783.0,4.642]
[1749611914251,0.8843,2783.1,2782.8,9.65911523]
[1749611914452,0.8843,2783.1,2782.9,4.642]
[1749611916349,6.79553083,2783.4,2782.9,4.642]
[1749611916550,0.77123308,2783.3,2782.9,4.642]
[1749611918329,6.24553083,2783.4,2782.9,4.642]
[1749611918736,0.9168,2783.5,2782.8,9.65911523]
[1749611918737,6.24553083,2783.0,2782.8,9.65911523]
[1749611919067,0.55,2782.9,2782.8,9.303]
[1749611919469,0.55,2782.9,2782.8,10.264]
[1749611919631,1.4276,2782.9,2782.8,10.264]
[1749611919832,2.81946617,2782.9,2782.8,10.264]
[1749611920444,2.81946617,2782.9,2782.8,0.961]
[1749611921443,2.81946617,2782.9,2781.2,10.0]
[1749611921444,1.94186617,2782.9,2781.2,10.0]
[1749611921634,0.8776,2782.1,2781.4,40.0]
[1749611921832,0.8776,2782.1,2781.4,30.0]
[1749611922060,0.8776,2782.1,2781.2,10.0]
[1749611922265,6.24553083,2782.0,2781.3,4.642]
[1749611922461,0.8776,2782.1,2781.3,4.642]
[1749611924083,0.8776,2782.8,2781.4,49.84079192]
[1749611924242,7.12313083,2782.8,2781.6,6.24553083]
[1749611924442,7.12313083,2782.8,2781.4,10.40865435]
[1749611924443,6.24553083,2782.6,2781.7,3.681]
[1749611924941,6.24553083,2782.4,2781.7,3.681]
[1749611925141,6.24553083,2782.4,2781.8,9.301]
[1749611925575,6.24553083,2782.0,2781.9,0.961]
[1749611925748,6.87008391,2782.0,2781.9,4.642]
[1749611925947,6.24553083,2782.0,2781.9,4.642]
[1749611926173,7.12313083,2782.0,2781.9,4.642]
[1749611927072,7.12313083,2782.0,2781.8,9.301]
[1749611927373,7.12313083,2782.0,2781.9,0.961]
[1749611928093,7.12313083,2782.0,2781.8,9.301]
[1749611928384,0.71231308,2781.9,2781.8,9.301]
[1749611928557,7.12313083,2782.0,2781.8,10.262]
[1749611929744,7.67313083,2782.0,2781.9,0.961]
[1749611935469,6.24553083,2782.2,2781.9,0.961]
[1749611935671,0.8726,2782.3,2781.9,0.961]
[1749611938235,6.24553083,2782.4,2781.9,0.961]
[1749611942028,0.8639,2782.5,2781.9,0.961]
[1749611942228,0.55,2782.6,2781.9,0.961]
[1749611942229,6.79553083,2782.6,2781.9,0.961]
[1749611943019,6.24553083,2782.6,2781.9,0.961]
[1749611949758,0.04,2782.9,2782.0,40.0]
[1749611950056,6.28553083,2782.9,2782.0,30.0]
[1749611951242,6.28553083,2782.9,2782.1,3.68]
[1749611953155,0.04,2782.9,2782.2,30.0]
[1749611953686,0.04,2782.9,2782.2,15.673]
[1749611953895,0.04,2782.9,2782.3,10.0]
[1749611954057,6.28553083,2782.9,2782.4,10.0]
[1749611954258,6.28553083,2782.9,2781.9,30.0]
[1749611954479,6.28553083,2782.9,2782.1,40.0]
[1749611954790,6.28553083,2782.9,2782.1,30.0]
[1749611956690,6.28553083,2782.9,2782.2,4.64]
[1749611956898,6.24553083,2782.5,2782.3,4.64]
[1749611957055,6.24553083,2782.5,2781.8,9.301]
[1749611957262,6.24553083,2782.5,2782.0,30.0]
[1749611959281,6.24553083,2782.7,2782.0,30.0]
[1749611960901,0.9189,2782.8,2782.1,3.68]
[1749611961200,6.24553083,2782.7,2782.1,3.68]
[1749611961619,6.24553083,2782.7,2782.2,9.301]
[1749611964423,6.24553083,2782.7,2782.3,3.679]
[1749611965449,0.9189,2782.8,2782.3,3.679]
[1749611965655,6.24553083,2782.7,2782.3,3.679]
[1749611966490,6.24553083,2782.7,2782.4,0.96]
[1749611967926,6.24553083,2782.7,2782.5,4.639]
[1749611968935,0.04,2782.9,2782.5,4.639]
[1749611970128,0.04,2782.9,2782.6,30.0]
[1749611970329,0.00953309,2782.9,2782.6,30.0]
[1749611971409,0.00953309,2782.9,2782.6,30.36705971]
[1749611971626,0.00953309,2782.9,2782.6,0.36705971]
[1749611971947,0.00953309,2782.9,2782.6,30.0]
[1749611973049,0.00953309,2782.9,2782.7,3.679]
[1749611973429,0.00953309,2782.9,2782.8,30.0]
[1749611973830,0.9167,2783.8,2782.8,30.0]
[1749611974152,0.04,2783.9,2783.1,30.0]
[1749611974449,0.04,2783.9,2783.3,10.0]
[1749611974651,0.04,2783.9,2783.4,4.639]
[1749611975041,0.04,2783.9,2783.5,30.0]
[1749611975339,7.09483083,2784.6,2783.6,33.678]
[1749611975565,7.09483083,2784.6,2783.6,3.678]
[1749611975940,0.8493,2784.6,2783.6,3.678]
[1749611976541,0.8493,2784.6,2783.7,0.86422486]
[1749611976843,0.8493,2784.6,2783.6,6.24553083]
[1749611977240,6.24553083,2784.7,2783.6,6.24553083]
[1749611977741,6.24553083,2784.7,2783.7,13.678]
[1749611977970,6.24553083,2784.7,2783.7,3.678]
[1749611978570,0.8493,2784.8,2783.8,30.0]
[1749611978954,0.8493,2784.8,2783.8,36.24553083]
[1749611979292,0.04,2784.9,2784.1,30.0]
[1749611979589,0.04,2784.9,2784.2,13.936]
[1749611980098,6.28553083,2784.9,2784.2,13.936]
[1749611980241,0.04,2784.9,2784.2,13.936]
[1749611980780,0.04,2784.9,2784.3,30.0]
[1749611981294,0.04,2784.9,2784.4,3.59142854]
[1749611981456,0.04,2784.9,2784.5,43.677]
[1749611981642,0.04,2784.9,2784.6,30.0]
[1749611981842,0.04,2784.9,2784.7,3.677]
[1749611982054,0.04,2784.9,2784.7,4.55838783]
[1749611984055,0.04,2784.9,2784.4,6.24553083]
[1749611984056,0.04,2784.9,2784.2,9.65769235]
[1749611984256,6.24553083,2784.8,2784.3,0.959]
[1749611984459,6.87408391,2784.8,2784.4,3.676]
[1749611985185,0.62855308,2784.8,2784.4,3.676]
[1749611986554,0.62855308,2784.8,2784.2,10.54580423]
[1749611986754,0.62855308,2784.8,2784.5,0.959]
[1749611986949,0.62855308,2784.8,2784.6,3.676]
[1749611987582,0.62855308,2784.8,2784.7,4.635]
[1749611987976,6.87408391,2784.8,2784.2,9.65769235]
[1749611988181,6.24553083,2784.4,2784.3,0.959]
[1749611988876,7.10163083,2784.4,2784.3,0.959]
[1749611989405,7.10163083,2784.4,2784.3,4.635]
[1749611990178,0.8561,2784.4,2784.3,4.635]
[1749611995423,0.8561,2784.4,2784.2,9.65769235]
[1749611995626,0.8561,2784.4,2784.3,4.634]
[1749611996232,0.9158,2784.9,2784.3,4.634]
[1749611997626,0.04,2784.9,2784.3,4.634]
[1749611998710,0.04,2784.9,2784.4,30.0]
[1749611999031,0.04,2784.9,2784.5,30.0]
[1749611999205,0.04,2784.9,2784.7,10.0]
[1749611999543,0.04,2784.9,2784.6,3.675]
[1749612002115,0.1,2785.4,2784.7,10.0]
[1749612002328,0.1,2785.4,2784.6,3.675]
[1749612002613,6.24553083,2785.1,2784.2,9.65769235]
[1749612002813,6.24553083,2785.1,2784.4,30.0]
[1749612003565,0.8476,2785.0,2784.5,4.633]
[1749612003725,0.8476,2785.0,2784.6,3.675]
[1749612004460,0.8476,2785.0,2784.7,4.633]
[1749612006840,0.8476,2785.0,2784.8,0.958]
[1749612007055,6.24553083,2784.9,2783.7,36.24553083]
[1749612007259,6.24553083,2784.9,2784.0,40.0]
[1749612007447,6.24553083,2784.9,2783.9,30.0]
[1749612007831,6.24553083,2784.6,2784.0,0.958]
[1749612008036,6.24553083,2784.6,2784.1,3.674]
[1749612008339,6.24553083,2784.6,2784.2,4.632]
[1749612008552,6.24553083,2784.6,2783.6,10.0]
[1749612008758,6.24553083,2784.8,2783.8,30.0]
[1749612009064,6.24553083,2784.8,2783.9,30.0]
[1749612009242,6.24553083,2784.8,2784.0,3.674]
[1749612014475,6.24553083,2784.8,2784.0,13.674]
[1749612015179,6.24553083,2784.8,2784.1,9.293]
[1749612015486,6.24553083,2784.3,2784.2,0.958]
[1749612015661,1.4369,2784.3,2784.2,0.958]
[1749612015841,7.68243083,2784.3,2784.2,0.958]
[1749612016795,6.24553083,2784.7,2784.2,0.958]
[1749612017096,0.8498,2784.7,2784.2,0.958]
[1749612017437,7.09533083,2784.7,2784.1,9.293]
[1749612017685,0.8498,2784.2,2784.1,9.293]
[1749612017976,0.55,2784.2,2784.1,10.251]
[1749612018153,1.3998,2784.2,2784.1,10.251]
[1749612019367,7.64533083,2784.2,2784.1,10.251]
[1749612023064,1.3998,2784.2,2784.1,10.251]
[1749612023273,7.64533083,2784.2,2784.1,10.251]
[1749612023572,8.40986391,2784.2,2784.1,10.251]
[1749612024906,8.40986391,2784.2,2784.1,9.293]
[1749612025092,8.40986391,2784.2,2784.1,10.251]
[1749612031421,8.40986391,2784.2,2784.1,9.293]
[1749612031713,8.40986391,2784.2,2783.1,0.04]
[1749612031714,0.9232,2784.0,2783.1,0.04]
[1749612031886,6.24553083,2783.3,2783.2,10.254]
[1749612032214,6.24553083,2783.3,2783.2,13.929]
[1749612033080,6.24553083,2783.8,2783.2,13.929]
[1749612034716,6.24553083,2784.0,2783.2,13.929]
[1749612034920,6.24553083,2783.8,2783.2,13.929]
[1749612036831,6.24553083,2784.0,2783.2,13.929]
[1749612040238,6.24553083,2783.8,2783.2,9.296]
[1749612040406,6.24553083,2783.8,2783.3,4.633]
[1749612040901,6.24553083,2783.6,2783.2,9.296]
[1749612041108,6.24553083,2783.6,2783.3,4.633]
[1749612041526,6.24553083,2783.8,2783.3,4.633]
[1749612042535,6.24553083,2783.6,2783.2,9.296]
[1749612042704,6.24553083,2783.4,2783.2,9.296]
[1749612043107,6.79553083,2783.4,2783.2,9.296]
[1749612043308,6.79553083,2783.4,2783.3,10.255]
[1749612043507,7.63913083,2783.4,2783.3,10.255]
[1749612043691,8.46549922,2783.4,2783.3,9.297]
[1749612043897,0.55,2783.3,2783.1,0.037963]
[1749612044099,6.79553083,2783.2,2783.1,0.037963]
[1749612044455,6.79553083,2783.2,2783.1,10.292963]
[1749612046325,6.79553083,2783.2,2783.1,9.334963]
[1749612046534,7.64208075,2783.2,2783.1,9.334963]
[1749612046860,8.47498075,2783.2,2783.1,10.292963]
[1749612047061,8.47498075,2783.2,2783.1,9.334963]
[1749612047359,8.47498075,2783.2,2783.1,10.292963]
[1749612049171,1.67944992,2783.2,2783.1,10.292963]
[1749612049341,6.24553083,2783.2,2783.1,10.292963]
[1749612050829,7.12563083,2783.6,2783.1,10.292963]
[1749612051031,7.12563083,2783.6,2783.2,3.675]
[1749612051459,6.24553083,2783.4,2783.2,3.675]
[1749612053784,6.24553083,2783.4,2783.1,9.334963]
[1749612053953,0.55,2783.4,2783.3,0.958]
[1749612054132,6.79553083,2783.4,2783.3,0.958]
[1749612055570,6.79553083,2783.4,2783.1,9.334963]
[1749612055773,0.55,2783.4,2783.2,0.958]
[1749612057168,6.24553083,2783.3,2782.3,30.0]
[1749612057340,6.24553083,2783.3,2782.4,0.958]
[1749612057873,6.24553083,2783.1,2782.2,40.0]
[1749612058065,6.24553083,2783.1,2782.5,0.958]
[1749612058376,6.24553083,2783.1,2782.6,3.675]
[1749612060383,0.55,2783.4,2782.6,3.675]
[1749612060567,6.24553083,2783.3,2782.6,3.675]
[1749612060734,6.24553083,2783.1,2782.1,10.0]
[1749612060938,6.24553083,2783.1,2782.2,25.212]
[1749612061176,6.24553083,2783.1,2782.3,22.177]
[1749612061475,6.24553083,2783.1,2782.5,10.0]
[1749612061773,6.24553083,2783.1,2782.4,3.675]
[1749612062151,6.24553083,2783.3,2782.4,3.675]
[1749612062550,6.24553083,2783.5,2782.4,4.08365435]
[1749612062860,0.8519,2783.7,2782.4,3.675]
[1749612062861,6.24553083,2783.3,2782.4,3.675]
[1749612063849,6.24553083,2783.3,2782.5,30.0]
[1749612064240,0.8519,2783.7,2782.5,15.048]
[1749612064241,6.24553083,2783.1,2782.5,15.048]
[1749612064444,0.55,2783.6,2782.2,30.0]
[1749612064445,6.24553083,2782.9,2782.2,30.0]
[1749612064667,6.24553083,2782.9,2782.4,16.888]
[1749612064852,6.24553083,2782.9,2782.4,7.171]
[1749612065064,6.24553083,2782.9,2782.5,4.633]
[1749612065244,6.24553083,2782.7,2782.5,9.299]
[1749612065443,6.24553083,2782.7,2782.6,4.633]
[1749612066090,6.24553083,2782.9,2782.6,4.633]
[1749612069757,6.24553083,2782.7,2782.6,0.958]
[1749612069954,6.24553083,2782.7,2782.5,9.299]
[1749612070158,6.24553083,2782.7,2782.6,0.958]
[1749612075196,6.24553083,2782.7,2782.5,9.299]
[1749612075398,6.24553083,2782.7,2782.6,0.958]
[1749612075598,6.95274391,2782.7,2782.6,0.958]
[1749612077158,6.24553083,2782.7,2782.6,0.958]
[1749612077986,10.02053083,2784.1,2782.6,0.958]
[1749612077987,0.8327,2783.0,2782.6,4.633]
[1749612078163,0.8327,2783.8,2782.7,40.0]
[1749612078360,0.8327,2783.8,2782.9,40.0]
[1749612078554,6.28553083,2783.9,2783.1,10.0]
[1749612078781,6.28553083,2783.9,2783.2,3.675]
[1749612078998,0.04,2783.9,2783.2,3.675]
[1749612079199,0.04,2783.9,2783.1,0.40865435]
[1749612079200,6.24553083,2783.3,2783.1,0.40865435]
[1749612079493,9.53123585,2783.5,2783.3,4.633]
[1749612079662,9.53123585,2783.5,2783.4,4.632]
[1749612079862,10.36393585,2783.8,2783.4,4.632]
[1749612080090,1.10324889,2783.7,2783.4,4.632]
[1749612084924,9.53123585,2783.5,2783.3,0.35378348]
[1749612085122,9.53123585,2783.5,2782.5,9.299]
[1749612085328,9.53123585,2783.5,2782.7,10.0]
[1749612086229,9.53123585,2783.5,2782.8,4.632]
[1749612086429,9.53123585,2783.5,2782.9,3.674]
[1749612086921,10.59468432,2783.5,2782.9,3.674]
[1749612088419,1.06344847,2783.5,2782.9,3.674]
[1749612088619,9.53123585,2783.5,2782.9,3.674]
[1749612089218,9.53123585,2783.5,2782.5,9.299]
[1749612089421,9.53123585,2783.5,2782.6,4.631]
[1749612091229,9.53123585,2783.5,2782.5,9.299]
[1749612091230,0.55,2783.4,2782.5,9.299]
[1749612091543,0.8584,2783.3,2782.7,4.631]
[1749612092245,0.55,2783.4,2782.7,4.631]
[1749612092727,0.8584,2783.5,2782.8,4.631]
[1749612099324,6.23984856,2783.4,2782.8,4.631]
[1749612100146,7.13544856,2783.8,2782.8,4.631]
[1749612100324,7.13544856,2783.8,2782.9,9.299]
[1749612100726,0.04,2783.9,2783.0,30.0]
[1749612100917,6.23984856,2783.7,2783.0,30.0]
[1749612103552,6.23984856,2783.5,2783.0,30.0]
[1749612104318,6.23984856,2783.5,2783.1,10.0]
[1749612104519,6.23984856,2783.5,2783.2,3.673]
[1749612105554,6.23984856,2783.5,2783.3,4.63]
[1749612106620,6.23984856,2783.5,2783.4,4.63]
[1749612106850,6.23984856,2783.5,2783.3,0.36057786]
[1749612107166,6.23984856,2783.5,2783.4,4.63]
[1749612109659,6.23984856,2783.5,2783.4,4.629]
[1749612109966,6.95003342,2783.5,2783.3,0.35526602]
[1749612110257,6.95003342,2783.5,2783.4,4.629]
[1749612110463,6.95003342,2783.5,2783.4,0.957]
[1749612111358,6.23984856,2783.7,2783.4,0.957]
[1749612111567,6.23984856,2783.5,2783.4,0.957]
[1749612112962,6.23984856,2783.3,2782.1,16.62372328]
[1749612113161,6.23984856,2783.3,2782.2,40.957]
[1749612113381,6.23984856,2783.3,2782.4,20.74070118]
[1749612113570,6.23984856,2783.1,2782.2,30.0]
[1749612113769,6.23984856,2783.1,2782.3,10.0]
[1749612113930,6.23984856,2783.1,2782.4,40.0]
[1749612114137,6.23984856,2783.1,2782.4,30.0]
[1749612115270,6.23984856,2783.1,2782.5,9.298]
[1749612116577,0.8933,2783.4,2782.5,9.298]
[1749612116755,7.13314856,2783.4,2782.5,9.298]
[1749612117662,7.13314856,2783.4,2782.5,12.89183504]
[1749612117857,7.13314856,2783.4,2782.5,9.298]
[1749612118677,6.23984856,2783.2,2782.5,9.298]
[1749612119376,6.23984856,2783.2,2782.6,3.672]
[1749612120358,0.8933,2783.4,2782.7,30.0]
[1749612120658,7.13314856,2783.4,2782.7,30.0]
[1749612121076,6.23984856,2783.4,2782.7,30.0]
[1749612124795,6.23984856,2783.4,2782.8,0.956]
[1749612125097,6.23984856,2783.4,2782.8,4.628]
[1749612129672,6.23984856,2783.4,2782.9,9.298]
[1749612130036,0.9101,2783.6,2782.9,9.298]
[1749612130037,7.14994856,2783.6,2782.9,9.298]
[1749612130509,6.23984856,2783.4,2783.0,3.672]
[1749612134488,6.23984856,2783.4,2783.1,0.956]
[1749612138327,7.14994856,2783.6,2783.2,4.627]
[1749612138992,6.23984856,2783.6,2783.2,4.627]
[1749612140603,0.04,2783.9,2783.2,4.627]
[1749612140995,0.04,2783.9,2783.3,30.0]
[1749612141196,0.04,2783.9,2783.5,3.59258243]
[1749612141525,0.04,2783.9,2783.7,10.0]
[1749612141691,7.09014856,2784.6,2783.7,10.0]
[1749612141888,7.09014856,2784.6,2783.6,3.671]
[1749612141889,0.8503,2784.6,2783.6,3.671]
[1749612142093,7.13924856,2784.8,2783.8,30.0]
[1749612142530,7.13924856,2784.8,2783.8,3.59212164]
[1749612142718,7.13924856,2784.8,2783.9,30.0]
[1749612143028,7.13924856,2784.8,2783.8,3.59212164]
[1749612143029,7.13924856,2784.8,2784.1,30.0]
[1749612143527,0.8519,2785.0,2784.1,30.0]
[1749612143697,7.09174856,2785.0,2784.2,30.0]
[1749612143898,7.09174856,2785.0,2784.3,3.67]
[1749612144394,7.09174856,2785.0,2784.4,16.917]
[1749612144616,7.09174856,2785.0,2784.3,3.67]
[1749612144797,7.09174856,2785.0,2784.5,10.0]
[1749612144992,7.09174856,2785.0,2784.6,13.67]
[1749612145299,6.23984856,2785.0,2784.7,9.296]
[1749612145492,6.23984856,2785.0,2784.8,0.956]
[1749612146401,7.09594856,2785.2,2784.8,0.956]
[1749612146802,7.09594856,2785.2,2784.8,1.31937688]
[1749612147700,0.1,2785.4,2784.8,1.31937688]
[1749612147901,0.1,2785.4,2784.8,31.31937688]
[1749612148223,0.1,2785.4,2784.8,32.23561803]
[1749612148602,0.1,2785.4,2784.9,30.0]
[1749612148929,0.1,2785.4,2785.1,30.0]
[1749612150402,0.1,2785.4,2785.2,4.624]
[1749612150713,0.1,2785.4,2785.3,30.0]
[1749612152617,0.010364,2785.4,2785.3,30.0]
[1749612153245,0.04,2785.9,2785.3,30.0]
[1749612153246,0.04,2785.9,2785.3,33.59024351]
[1749612153493,1.8682,2786.6,2785.8,30.0]
[1749612153622,1.8682,2786.6,2786.0,10.0]
[1749612153623,7.23984856,2786.6,2786.0,10.0]
[1749612153805,1.0,2786.6,2786.1,4.624]
[1749612155004,1.0,2786.6,2786.1,8.2132448]
[1749612155207,1.0,2786.6,2786.1,4.624]
[1749612155403,7.23984856,2786.6,2786.1,4.624]
[1749612155651,1.0,2786.6,2786.2,30.0]
[1749612155804,1.0,2786.6,2786.4,40.0]
[1749612156142,0.04,2786.9,2786.5,42.959]
[1749612156346,6.27984856,2786.9,2786.6,30.0]
[1749612156645,6.27984856,2786.9,2786.5,12.959]
[1749612156646,0.04,2786.9,2786.7,3.668]
[1749612156942,0.04,2786.9,2786.8,30.0]
[1749612157352,0.05,2787.4,2786.8,30.0]
[1749612157547,0.05,2787.4,2787.0,40.0]
[1749612157842,0.05,2787.4,2787.1,3.667]
[1749612158937,6.28984856,2787.4,2787.1,3.667]
[1749612159251,0.05,2787.4,2787.1,3.667]
[1749612161145,0.05,2787.4,2787.3,10.0]
[1749612161349,0.05,2787.4,2787.2,30.0]
[1749612162606,0.05,2787.4,2786.9,0.954]
[1749612162607,0.05,2787.4,2787.3,3.666]
[1749612163844,0.8507,2788.0,2787.3,3.666]
[1749612164022,0.8507,2788.4,2787.5,3.58740062]
[1749612164221,0.8507,2788.4,2787.7,8.192]
[1749612164418,6.23984856,2788.2,2787.8,0.954]
[1749612164617,6.23984856,2788.2,2787.9,30.0]